fUST/lending_fUST_20250731
["ID","MTS","AMOUNT","RATE_DAILY","PERIOD"]
[376331920,1753936245053,-311.39808577,0.00019178,2]
[376331921,1753936245062,-1224.81,0.00019178,2]
[376331922,1753936245072,-460.0,0.00019178,2]
[376331923,1753936245082,-395.92469795,0.00019178,2]
[376331924,1753936245091,-460.0,0.00019178,2]
[376331925,1753936245101,-460.0,0.00019178,2]
[376331926,1753936245111,-460.0,0.00019178,2]
[376331927,1753936245120,-460.0,0.00019178,2]
[376331928,1753936245129,-460.0,0.00019178,2]
[376331929,1753936245138,-461.53181973,0.00019178,2]
[376331931,1753936245147,-460.0,0.00019178,2]
[376331933,1753936245156,-460.0,0.00019178,2]
[376331935,1753936245165,-496.3,0.00019178,2]
[376331937,1753936245174,-1128.85,0.00019178,2]
[376331939,1753936245183,-460.0,0.00019178,2]
[376331941,1753936245192,-460.0,0.00019178,2]
[376331943,1753936245201,-460.0,0.00019178,2]
[376331945,1753936245209,-455.0,0.00019178,2]
[376331947,1753936245219,-460.0,0.00019178,2]
[376331949,1753936245228,-518.18377636,0.00019178,2]
[376331951,1753936245237,-460.0,0.00019178,2]
[376331952,1753936245247,-460.78767355,0.00019178,2]
[376331954,1753936245256,-460.0,0.00019178,2]
[376331956,1753936245265,-460.0,0.00019178,2]
[376331959,1753936245274,-460.0,0.00019178,2]
[376331961,1753936245283,-460.0,0.00019178,2]
[376331963,1753936245293,-460.0,0.00019178,2]
[376331964,1753936245303,-419.74844633,0.00019178,2]
[376331965,1753936245312,-460.0,0.00019178,2]
[376331966,1753936245322,-460.0,0.00019178,2]
[376331967,1753936245331,-460.0,0.00019178,2]
[376331968,1753936245341,-460.0,0.00019178,2]
[376331969,1753936245350,-460.0,0.00019178,2]
[376331970,1753936245359,-461.58608401,0.00019178,2]
[376331971,1753936245369,-1143.98,0.00019178,2]
[376331972,1753936245378,-460.0,0.00019178,2]
[376331973,1753936245387,-460.0,0.00019178,2]
[376331974,1753936245397,-460.0,0.00019178,2]
[376331975,1753936245407,-461.08212452,0.00019178,2]
[376331976,1753936245416,-805.13,0.00019178,2]
[376331977,1753936245426,-460.0,0.00019178,2]
[376331978,1753936245435,-460.0,0.00019178,2]
[376331979,1753936245444,-460.0,0.00019178,2]
[376331980,1753936245454,-460.0,0.00019178,2]
[376331981,1753936245463,-460.0,0.00019178,2]
[376331982,1753936245472,-460.0,0.00019178,2]
[376331983,1753936245481,-465.15556122,0.00019178,2]
[376331984,1753936245490,-460.0,0.00019178,2]
[376331985,1753936245499,-151.0,0.00019178,2]
[376331986,1753936245509,-903.56,0.00019178,2]
[376331987,1753936245518,-460.0,0.00019178,2]
[376331988,1753936245528,-460.0,0.00019178,2]
[376331989,1753936245538,-460.0,0.00019178,2]
[376331990,1753936245548,-463.68620313,0.00019178,2]
[376331991,1753936245557,-460.0,0.00019178,2]
[376331992,1753936245566,-460.0,0.00019178,2]
[376331993,1753936245575,-460.0,0.00019178,2]
[376331994,1753936245584,-460.0,0.00019178,2]
[376331995,1753936245594,-461.94812364,0.00019178,2]
[376331996,1753936245603,-460.0,0.00019178,2]
[376331997,1753936245612,-649.17,0.00019178,2]
[376331998,1753936245621,-460.0,0.00019178,2]
[376331999,1753936245630,-472.19025491,0.00019178,2]
[376332000,1753936245640,-460.0,0.00019178,2]
[376332001,1753936245649,-460.0,0.00019178,2]
[376332002,1753936245662,-460.0,0.00019178,2]
[376332003,1753936245672,-460.0,0.00019178,2]
[376332004,1753936245682,-460.0,0.00019178,2]
[376332005,1753936245691,-460.0,0.00019178,2]
[376332006,1753936245700,-460.0,0.00019178,2]
[376332007,1753936245710,-460.0,0.00019178,2]
[376332008,1753936245719,-460.0,0.00019178,2]
[376332009,1753936245729,-460.0,0.00019178,2]
[376332010,1753936245738,-460.0,0.00019178,2]
[376332011,1753936245748,-460.0,0.00019178,2]
[376332012,1753936245758,-204.9,0.00019178,2]
[376332013,1753936245768,-1803.61,0.00019178,2]
[376332014,1753936245777,-460.0,0.00019178,2]
[376332015,1753936245787,-2152.82,0.00019178,2]
[376332016,1753936245796,-460.0,0.00019178,2]
[376332017,1753936245806,-203.86227242,0.00019178,2]
[376332018,1753936245816,-460.0,0.00019178,2]
[376332019,1753936245825,-460.0,0.00019178,2]
[376332020,1753936245835,-460.0,0.00019178,2]
[376332021,1753936245844,-460.0,0.00019178,2]
[376332022,1753936245853,-460.0,0.00019178,2]
[376332023,1753936245863,-460.0,0.00019178,2]
[376332024,1753936245873,-460.0,0.00019178,2]
[376332025,1753936245882,-3378.69,0.00019178,2]
[376332026,1753936245891,-460.0,0.00019178,2]
[376332027,1753936245901,-460.0,0.00019178,2]
[376332028,1753936245910,-460.0,0.00019178,2]
[376332029,1753936245919,-460.0,0.00019178,2]
[376332030,1753936245930,-460.0,0.00019178,2]
[376332031,1753936245939,-294.42652839,0.00019178,2]
[376332032,1753936245949,-1402.33,0.00019178,2]
[376332033,1753936245959,-460.0,0.00019178,2]
[376332034,1753936245968,-507.54,0.00019178,2]
[376332035,1753936245978,-460.0,0.00019178,2]
[376332036,1753936245987,-461.31317449,0.00019178,2]
[376332037,1753936245997,-464.85762574,0.00019178,2]
[376332038,1753936246006,-460.0,0.00019178,2]
[376332039,1753936246016,-460.0,0.00019178,2]
[376332040,1753936246025,-171.959593,0.00019178,2]
[376332041,1753936246035,-633.33,0.0001935,2]
[376332042,1753936246045,-460.0,0.00019351,2]
[376332043,1753936246054,-954.74,0.00019351,2]
[376332044,1753936246063,-875.52,0.00019351,2]
[376332045,1753936246074,-460.0,0.00019351,2]
[376332046,1753936246083,-460.0,0.00019351,2]
[376332047,1753936246092,-460.0,0.00019351,2]
[376332049,1753936246101,-156.26367628,0.00019352,2]
[376332050,1753936246111,-151.0,0.00019452,2]
[376332051,1753936246120,-151.0,0.00019452,2]
[376332052,1753936246130,-500.0,0.00019452,2]
[376332053,1753936246139,-151.0,0.00019452,2]
[376332054,1753936246148,-151.0,0.00019452,2]
[376332055,1753936246157,-460.0,0.00019452,2]
[376332056,1753936246166,-162.96455665,0.00019452,2]
[376332057,1753936246176,-151.0,0.00019452,2]
[376332058,1753936246190,-151.0,0.00019452,2]
[376332059,1753936246199,-460.0,0.00019452,2]
[376332060,1753936246208,-460.0,0.00019452,2]
[376332061,1753936246217,-460.0,0.00019452,2]
[376332062,1753936246227,-460.0,0.00019452,2]
[376332063,1753936246236,-460.0,0.00019452,2]
[376332064,1753936246245,-460.0,0.00019452,2]
[376332065,1753936246255,-460.0,0.00019452,2]
[376332066,1753936246264,-460.0,0.00019452,2]
[376332067,1753936246273,-460.0,0.00019452,2]
[376332068,1753936246282,-460.0,0.00019452,2]
[376332069,1753936246291,-460.0,0.00019452,2]
[376332070,1753936246301,-460.0,0.00019452,2]
[376332071,1753936246310,-460.0,0.00019452,2]
[376332072,1753936246320,-460.0,0.00019452,2]
[376332073,1753936246331,-460.0,0.00019452,2]
[376332074,1753936246340,-460.0,0.00019452,2]
[376332075,1753936246349,-460.0,0.00019452,2]
[376332076,1753936246358,-460.0,0.00019452,2]
[376332077,1753936246368,-460.0,0.00019452,2]
[376332078,1753936246377,-460.0,0.00019452,2]
[376332079,1753936246387,-394.4877746,0.00019452,2]
[376332080,1753936246396,-460.0,0.00019452,2]
[376332081,1753936246405,-997.06,0.00019452,2]
[376332082,1753936246415,-1252.39,0.00019452,2]
[376332083,1753936246424,-460.0,0.00019452,2]
[376332084,1753936246434,-460.0,0.00019452,2]
[376332085,1753936246443,-702.75,0.00019452,2]
[376332086,1753936246453,-460.0,0.00019452,2]
[376332087,1753936246463,-460.0,0.00019452,2]
[376332088,1753936246472,-798.84,0.00019452,2]
[376332089,1753936246481,-521.80569932,0.00019452,2]
[376332090,1753936246490,-460.0,0.00019452,2]
[376332091,1753936246499,-460.0,0.00019452,2]
[376332092,1753936246508,-460.0,0.00019452,2]
[376332093,1753936246517,-460.0,0.00019452,2]
[376332094,1753936246526,-1224.81,0.00019452,2]
[376332095,1753936246535,-460.0,0.00019452,2]
[376332096,1753936246545,-460.0,0.00019452,2]
[376332097,1753936246554,-496.3,0.00019452,2]
[376332098,1753936246564,-1128.85,0.00019452,2]
[376332099,1753936246573,-460.0,0.00019452,2]
[376332100,1753936246582,-460.0,0.00019452,2]
[376332101,1753936246592,-460.0,0.00019452,2]
[376332102,1753936246601,-460.0,0.00019452,2]
[376332103,1753936246611,-460.0,0.00019452,2]
[376332104,1753936246620,-460.0,0.00019452,2]
[376332105,1753936246751,-460.0,0.00019452,2]
[376332106,1753936246761,-460.0,0.00019452,2]
[376332107,1753936246771,-1143.98,0.00019452,2]
[376332108,1753936246780,-460.0,0.00019452,2]
[376332109,1753936246789,-805.13,0.00019452,2]
[376332110,1753936246799,-903.56,0.00019452,2]
[376332111,1753936246808,-460.0,0.00019452,2]
[376332112,1753936246817,-460.0,0.00019452,2]
[376332113,1753936246827,-460.0,0.00019452,2]
[376332114,1753936246836,-649.17,0.00019452,2]
[376332115,1753936246845,-460.0,0.00019452,2]
[376332116,1753936246854,-460.0,0.00019452,2]
[376332117,1753936246863,-460.0,0.00019452,2]
[376332118,1753936246872,-2152.82,0.00019452,2]
[376332119,1753936246882,-1803.61,0.00019452,2]
[376332120,1753936246891,-460.0,0.00019452,2]
[376332121,1753936246900,-460.0,0.00019452,2]
[376332122,1753936246909,-3378.69,0.00019452,2]
[376332123,1753936246919,-460.0,0.00019452,2]
[376332124,1753936246930,-460.0,0.00019452,2]
[376332125,1753936246939,-1402.33,0.00019452,2]
[376332126,1753936246949,-460.0,0.00019452,2]
[376332127,1753936246958,-507.54,0.00019452,2]
[376332128,1753936246967,-460.0,0.00019452,2]
[376332129,1753936246977,-200.0,0.00019557,15]
[376332130,1753936246986,-200.0,0.00019557,15]
[376332131,1753936246996,-200.0,0.00019557,15]
[376332132,1753936247005,-200.0,0.00019557,15]
[376332133,1753936247014,-200.0,0.00019557,15]
[376332134,1753936247024,-200.0,0.00019557,15]
[376332135,1753936247033,-200.0,0.00019557,15]
[376332136,1753936247042,-200.0,0.00019557,15]
[376332137,1753936247052,-954.74,0.00019625,2]
[376332138,1753936247062,-875.52,0.00019625,2]
[376332139,1753936247071,-460.0,0.00019625,2]
[376332140,1753936247080,-500.0,0.00019699,2]
[376332141,1753936247090,-500.0,0.00019699,2]
[376332142,1753936247099,-500.0,0.00019699,2]
[376332143,1753936247108,-500.0,0.00019699,2]
[376332144,1753936247118,-425.87118872,0.00019699,2]
[376332145,1753936247127,-500.0,0.00019699,2]
[376332146,1753936247136,-506.78627894,0.00019699,2]
[376332147,1753936247145,-512.18066361,0.00019699,2]
[376332148,1753936247155,-391.99348312,0.00019699,2]
[376332149,1753936247164,-500.0,0.00019699,2]
[376332150,1753936247175,-500.0,0.00019699,2]
[376332151,1753936247185,-208.15993368,0.00019699,2]
[376332152,1753936247195,-13710.30481684,0.000197,2]
[376332153,1753936247204,-151.0,0.00019726,2]
[376332154,1753936247213,-151.0,0.00019726,2]
[376332155,1753936247223,-500.0,0.00019726,2]
[376332156,1753936247232,-193.32028403,0.00019726,2]
[376332157,1753936247241,-198.0,0.00019726,2]
[376332158,1753936247251,-151.0,0.00019726,2]
[376332159,1753936247261,-151.0,0.00019726,2]
[376332160,1753936247271,-460.0,0.00019726,2]
[376332161,1753936247280,-460.0,0.00019726,2]
[376332162,1753936247292,-460.0,0.00019726,2]
[376332163,1753936247302,-460.0,0.00019726,2]
[376332164,1753936247311,-281.98128384,0.00019726,2]
[376332165,1753936247320,-460.0,0.00019726,2]
[376332166,1753936247329,-460.0,0.00019726,2]
[376332167,1753936247338,-460.0,0.00019726,2]
[376332168,1753936247348,-209.65172473,0.00019726,2]
[376332169,1753936247357,-460.0,0.00019726,2]
[376332170,1753936247367,-460.0,0.00019726,2]
[376332171,1753936247376,-460.0,0.00019726,2]
[376332172,1753936247385,-460.0,0.00019726,2]
[376332173,1753936247395,-460.0,0.00019726,2]
[376332174,1753936247405,-460.0,0.00019726,2]
[376332175,1753936247415,-460.0,0.00019726,2]
[376332176,1753936247425,-460.0,0.00019726,2]
[376332177,1753936247435,-460.0,0.00019726,2]
[376332178,1753936247444,-460.0,0.00019726,2]
[376332179,1753936247454,-460.0,0.00019726,2]
[376332180,1753936247464,-997.06,0.00019726,2]
[376332181,1753936247474,-1252.39,0.00019726,2]
[376332182,1753936247484,-460.0,0.00019726,2]
[376332183,1753936247493,-702.75,0.00019726,2]
[376332184,1753936247503,-460.0,0.00019726,2]
[376332185,1753936247512,-460.0,0.00019726,2]
[376332186,1753936247522,-798.84,0.00019726,2]
[376332187,1753936247532,-460.0,0.00019726,2]
[376332188,1753936247542,-460.0,0.00019726,2]
[376332189,1753936247551,-460.0,0.00019726,2]
[376332190,1753936247560,-1224.81,0.00019726,2]
[376332191,1753936247569,-496.3,0.00019726,2]
[376332192,1753936247578,-1128.85,0.00019726,2]
[376332193,1753936247587,-460.0,0.00019726,2]
[376332194,1753936247596,-460.0,0.00019726,2]
[376332195,1753936247605,-460.0,0.00019726,2]
[376332196,1753936247614,-460.0,0.00019726,2]
[376332197,1753936247623,-460.0,0.00019726,2]
[376332198,1753936247633,-460.0,0.00019726,2]
[376332199,1753936247642,-523.01687562,0.00019726,2]
[376332200,1753936247651,-460.0,0.00019726,2]
[376332201,1753936247665,-460.0,0.00019726,2]
[376332202,1753936247675,-1143.98,0.00019726,2]
[376332203,1753936247684,-460.0,0.00019726,2]
[376332204,1753936247693,-805.13,0.00019726,2]
[376332205,1753936247702,-903.56,0.00019726,2]
[376332206,1753936247712,-460.0,0.00019726,2]
[376332207,1753936247721,-460.0,0.00019726,2]
[376332208,1753936247731,-460.0,0.00019726,2]
[376332209,1753936247740,-649.17,0.00019726,2]
[376332210,1753936247749,-460.0,0.00019726,2]
[376332211,1753936247758,-460.0,0.00019726,2]
[376332212,1753936247767,-2152.82,0.00019726,2]
[376332213,1753936247777,-1803.61,0.00019726,2]
[376332214,1753936247786,-460.0,0.00019726,2]
[376332215,1753936247795,-460.0,0.00019726,2]
[376332216,1753936247804,-3378.69,0.00019726,2]
[376332217,1753936247813,-460.0,0.00019726,2]
[376332218,1753936247822,-460.0,0.00019726,2]
[376332219,1753936247831,-1402.33,0.00019726,2]
[376332220,1753936247840,-460.0,0.00019726,2]
[376332221,1753936247850,-507.54,0.00019726,2]
[376332222,1753936247859,-502.26389657,0.00019797,2]
[376332223,1753936247868,-500.0,0.00019797,2]
[376332224,1753936247877,-500.0,0.00019797,2]
[376332225,1753936247886,-500.0,0.00019797,2]
[376332226,1753936247895,-501.29726446,0.00019853,2]
[376332227,1753936247904,-244.75393949,0.00019853,2]
[376332228,1753936247913,-501.13402565,0.00019853,2]
[376332229,1753936247922,-288.84572925,0.00019853,2]
[376332230,1753936247933,-330.68007487,0.00019853,2]
[376332231,1753936247941,-564.52474932,0.00019853,2]
[376332232,1753936247951,-198.24351194,0.00019853,2]
[376332233,1753936247960,-864.51,0.0001989,3]
[376332234,1753936247970,-954.74,0.00019899,2]
[376332235,1753936247979,-875.52,0.00019899,2]
[376332236,1753936247989,-151.0,0.00019899,2]
[376332237,1753936247998,-364.60058746,0.000199,2]
[376332238,1753936248007,-1682.40411313,0.000199,2]
[376332239,1753936248016,-699.696917,0.00019963,2]
[376332240,1753936248025,-151.0,0.00019989,2]
[376332241,1753936248035,-151.0,0.00019989,2]
[376332242,1753936248044,-284.06082,0.00019989,2]
[376332243,1753936248053,-151.0,0.00019989,2]
[376332244,1753936248062,-151.0,0.00019989,2]
[376332245,1753936248071,-151.0,0.00019989,2]
[376332246,1753936248081,-576.33,0.0001999,3]
[376332247,1753936248090,-288.17,0.0001999,3]
[376332248,1753936248098,-25660.83680876,0.0001999,2]
[376332249,1753936248108,-225.80927679,0.0002,2]
[376332250,1753936248118,-251.83658167,0.0002,2]
[376332251,1753936248128,-500.0,0.0002,2]
[376332252,1753936248137,-217.70481271,0.0002,2]
[376332253,1753936248146,-230.91962114,0.0002,2]
[376332254,1753936248156,-460.0,0.0002,2]
[376332255,1753936248165,-233.0457102,0.0002,2]
[376332256,1753936248176,-460.0,0.0002,2]
[376332257,1753936248186,-219.10237441,0.0002,2]
[376332258,1753936248195,-460.0,0.0002,2]
[376332259,1753936248204,-592.20647676,0.0002,2]
[376332260,1753936248213,-460.0,0.0002,2]
[376332261,1753936248223,-187.87342184,0.0002,2]
[376332262,1753936248232,-460.0,0.0002,2]
[376332263,1753936248242,-151.0,0.0002,2]
[376332264,1753936248251,-460.0,0.0002,2]
[376332265,1753936248260,-460.0,0.0002,2]
[376332266,1753936248269,-460.0,0.0002,2]
[376332267,1753936248278,-460.0,0.0002,2]
[376332268,1753936248287,-151.0,0.0002,2]
[376332269,1753936248296,-151.0,0.0002,2]
[376332270,1753936248305,-160.144118,0.0002,2]
[376332271,1753936248314,-460.0,0.0002,2]
[376332272,1753936248323,-460.0,0.0002,2]
[376332273,1753936248332,-460.0,0.0002,2]
[376332274,1753936248341,-3313.19972023,0.0002,7]
[376332275,1753936248351,-460.0,0.0002,2]
[376332276,1753936248360,-151.0,0.0002,2]
[376332277,1753936248369,-460.0,0.0002,2]
[376332278,1753936248378,-151.0,0.0002,2]
[376332279,1753936248388,-1252.39,0.0002,2]
[376332280,1753936248398,-997.06,0.0002,2]
[376332281,1753936248408,-460.0,0.0002,2]
[376332282,1753936248417,-151.0,0.0002,2]
[376332283,1753936248428,-702.75,0.0002,2]
[376332284,1753936248438,-151.0,0.0002,2]
[376332285,1753936248448,-204.28765321,0.0002,2]
[376332286,1753936248458,-460.0,0.0002,2]
[376332287,1753936248468,-798.84,0.0002,2]
[376332288,1753936248477,-151.0,0.0002,2]
[376332289,1753936248487,-460.0,0.0002,2]
[376332290,1753936248496,-460.0,0.0002,2]
[376332291,1753936248505,-460.0,0.0002,2]
[376332292,1753936248515,-1224.81,0.0002,2]
[376332293,1753936248525,-151.0,0.0002,2]
[376332294,1753936248534,-496.3,0.0002,2]
[376332295,1753936248543,-1128.85,0.0002,2]
[376332296,1753936248552,-460.0,0.0002,2]
[376332297,1753936248561,-460.0,0.0002,2]
[376332298,1753936248570,-151.0,0.0002,2]
[376332299,1753936248579,-460.0,0.0002,2]
[376332300,1753936248588,-460.0,0.0002,2]
[376332301,1753936248597,-460.0,0.0002,2]
[376332302,1753936248606,-460.0,0.0002,2]
[376332303,1753936248615,-460.0,0.0002,2]
[376332304,1753936248624,-460.0,0.0002,2]
[376332305,1753936248633,-1143.98,0.0002,2]
[376332306,1753936248642,-460.0,0.0002,2]
[376332307,1753936248651,-805.13,0.0002,2]
[376332308,1753936248661,-903.56,0.0002,2]
[376332309,1753936248670,-460.0,0.0002,2]
[376332310,1753936248681,-460.0,0.0002,2]
[376332311,1753936248690,-460.0,0.0002,2]
[376332312,1753936248700,-649.17,0.0002,2]
[376332313,1753936248709,-460.0,0.0002,2]
[376332314,1753936248718,-460.0,0.0002,2]
[376332315,1753936248727,-1803.61,0.0002,2]
[376332316,1753936248736,-2152.82,0.0002,2]
[376332317,1753936248746,-460.0,0.0002,2]
[376332318,1753936248755,-460.0,0.0002,2]
[376332319,1753936248764,-3378.69,0.0002,2]
[376332320,1753936248773,-460.0,0.0002,2]
[376332321,1753936248783,-1402.33,0.0002,2]
[376332322,1753936248792,-607.64915748,0.0002,2]
[376332323,1753936248801,-507.54,0.0002,2]
[376332324,1753936248810,-1682.40411287,0.00020141,2]
[376332325,1753936248819,-160.0,0.00020168,2]
[376332326,1753936248828,-7291.24661637,0.00020173,3]
[376332327,1753936248838,-954.74,0.00020173,2]
[376332328,1753936248847,-875.52,0.00020173,2]
[376332329,1753936248857,-460.0,0.00020273,2]
[376332330,1753936248866,-460.0,0.00020273,2]
[376332331,1753936248875,-460.0,0.00020273,2]
[376332332,1753936248885,-460.0,0.00020273,2]
[376332333,1753936248894,-460.0,0.00020273,2]
[376332334,1753936248903,-152.81377,0.00020273,2]
[376332335,1753936248912,-545.48434535,0.00020273,2]
[376332336,1753936248923,-460.0,0.00020273,2]
[376332337,1753936248933,-460.0,0.00020273,2]
[376332338,1753936248943,-460.0,0.00020273,2]
[376332339,1753936248952,-151.0,0.00020273,2]
[376332340,1753936248971,-460.0,0.00020273,2]
[376332341,1753936248983,-460.0,0.00020273,2]
[376332342,1753936248992,-460.0,0.00020273,2]
[376332343,1753936249002,-460.0,0.00020273,2]
[376332344,1753936249013,-460.0,0.00020273,2]
[376332345,1753936249025,-1252.39,0.00020273,2]
[376332346,1753936249036,-997.06,0.00020273,2]
[376332347,1753936249047,-460.0,0.00020273,2]
[376332348,1753936249057,-702.75,0.00020273,2]
[376332349,1753936249068,-460.0,0.00020273,2]
[376332350,1753936249079,-798.84,0.00020273,2]
[376332351,1753936249090,-460.0,0.00020273,2]
[376332352,1753936249100,-182.3,0.00020273,2]
[376332353,1753936249111,-460.0,0.00020273,2]
[376332354,1753936249122,-1224.81,0.00020273,2]
[376332355,1753936249132,-496.3,0.00020273,2]
[376332356,1753936249142,-1128.85,0.00020273,2]
[376332357,1753936249153,-460.0,0.00020273,2]
[376332358,1753936249163,-460.0,0.00020273,2]
[376332359,1753936249174,-151.0,0.00020273,2]
[376332360,1753936249186,-460.0,0.00020273,2]
[376332361,1753936249196,-460.0,0.00020273,2]
[376332362,1753936249206,-460.0,0.00020273,2]
[376332363,1753936249216,-460.0,0.00020273,2]
[376332364,1753936249225,-460.0,0.00020273,2]
[376332365,1753936249235,-460.0,0.00020273,2]
[376332366,1753936249245,-1143.98,0.00020273,2]
[376332367,1753936249255,-460.0,0.00020273,2]
[376332368,1753936249265,-805.13,0.00020273,2]
[376332369,1753936249274,-903.56,0.00020273,2]
[376332370,1753936249284,-460.0,0.00020273,2]
[376332371,1753936249294,-460.0,0.00020273,2]
[376332372,1753936249304,-460.0,0.00020273,2]
[376332373,1753936249314,-649.17,0.00020273,2]
[376332374,1753936249323,-460.0,0.00020273,2]
[376332375,1753936249341,-460.0,0.00020273,2]
[376332376,1753936249350,-1803.61,0.00020273,2]
[376332377,1753936249360,-2152.82,0.00020273,2]
[376332378,1753936249370,-460.0,0.00020273,2]
[376332379,1753936249379,-460.0,0.00020273,2]
[376332380,1753936249389,-3378.69,0.00020273,2]
[376332381,1753936249399,-460.0,0.00020273,2]
[376332382,1753936249408,-1402.33,0.00020273,2]
[376332383,1753936249418,-507.54,0.00020273,2]
[376332384,1753936249428,-500.0,0.00020274,2]
[376332385,1753936249438,-151.0,0.00020274,2]
[376332386,1753936249447,-151.0,0.00020274,2]
[376332387,1753936249457,-151.0,0.00020274,2]
[376332388,1753936249467,-151.0,0.00020274,2]
[376332389,1753936249476,-500.0,0.00020345,2]
[376332390,1753936249486,-168.0,0.00020349,2]
[376332391,1753936249496,-795.0,0.00020353,2]
[376332392,1753936249505,-1682.40411287,0.00020383,3]
[376332393,1753936249515,-151.0,0.00020383,2]
[376332394,1753936249524,-151.0,0.00020383,2]
[376332395,1753936249534,-1809.0,0.0002044,2]
[376332396,1753936249543,-168.0,0.00020444,2]
[376332397,1753936249553,-151.0,0.00020447,2]
[376332398,1753936249562,-151.0,0.00020447,2]
[376332399,1753936249571,-151.0,0.00020447,2]
[376332400,1753936249580,-151.0,0.00020447,2]
[376332401,1753936249595,-954.74,0.00020447,2]
[376332402,1753936249605,-151.0,0.00020447,2]
[376332403,1753936249614,-151.0,0.00020447,2]
[376332404,1753936249623,-151.0,0.00020447,2]
[376332405,1753936249633,-875.52,0.00020447,2]
[376332406,1753936249642,-4567.24828112,0.00020481,2]
[376332407,1753936249651,-770.85124948,0.00020546,2]
[376332408,1753936249661,-407.89576783,0.00020546,2]
[376332409,1753936249675,-770.85124948,0.00020546,2]
[376332410,1753936249684,-770.85124948,0.00020546,2]
[376332411,1753936249693,-770.85124948,0.00020546,2]
[376332412,1753936249702,-770.85124948,0.00020546,2]
[376332413,1753936249713,-770.85124948,0.00020546,2]
[376332414,1753936249723,-770.85124948,0.00020546,2]
[376332415,1753936249732,-770.85124948,0.00020546,2]
[376332416,1753936249741,-770.85124948,0.00020546,2]
[376332417,1753936249750,-770.85124948,0.00020546,2]
[376332418,1753936249759,-770.85124948,0.00020546,2]
[376332419,1753936249769,-770.85124948,0.00020546,2]
[376332420,1753936249778,-770.85124948,0.00020546,2]
[376332421,1753936249787,-770.85124948,0.00020546,2]
[376332422,1753936249796,-770.85124948,0.00020546,2]
[376332423,1753936249806,-770.85124948,0.00020546,2]
[376332424,1753936249815,-770.85124948,0.00020546,2]
[376332425,1753936249825,-544.62062026,0.00020547,2]
[376332426,1753936249834,-151.0,0.00020547,2]
[376332427,1753936249844,-151.0,0.00020547,2]
[376332428,1753936249853,-307.339196,0.00020547,2]
[376332429,1753936249863,-151.0,0.00020547,2]
[376332430,1753936249872,-151.0,0.00020547,2]
[376332431,1753936250043,-460.0,0.00020547,2]
[376332432,1753936250054,-151.0,0.00020547,2]
[376332433,1753936250065,-471.00352762,0.00020547,2]
[376332434,1753936250074,-529.39339222,0.00020547,2]
[376332435,1753936250084,-460.0,0.00020547,2]
[376332436,1753936250094,-533.193738,0.00020547,2]
[376332437,1753936250103,-427.84820932,0.00020547,2]